fUST/lending_fUST_20251201
["ID","MTS","AMOUNT","RATE_DAILY","PERIOD"]
[395224651,1764552649577,-500.0,0.00013405,2]
[395224652,1764552649587,-500.0,0.00013405,2]
[395224653,1764552649597,-151.0,0.00013405,2]
[395224654,1764552649606,-1841.0,0.00013406,2]
[395224655,1764552649616,-500.0,0.00013406,2]
[395224656,1764552649626,-226.48263279,0.00013406,2]
[395224657,1764552649636,-151.0,0.00013406,2]
[395224658,1764552649645,-151.0,0.00013406,2]
[395224659,1764552649655,-500.0,0.00013488,2]
[395224660,1764552649665,-500.0,0.00013488,2]
[395224661,1764552649675,-500.0,0.00013488,2]
[395224662,1764552649686,-500.0,0.00013488,2]
[395224663,1764552649696,-500.0,0.00013488,2]
[395224664,1764552649705,-500.0,0.00013488,2]
[395224665,1764552649715,-518.95,0.00013488,2]
[395224666,1764552649725,-591.78,0.00013488,2]
[395224667,1764552649736,-500.0,0.00013488,2]
[395224668,1764552649748,-500.0,0.00013488,2]
[395224669,1764552649758,-500.0,0.00013488,2]
[395224670,1764552649769,-500.0,0.00013488,2]
[395224671,1764552649780,-500.0,0.00013488,2]
[395224672,1764552649790,-500.0,0.00013488,2]
[395224673,1764552649800,-500.0,0.00013489,2]
[395224674,1764552649811,-151.0,0.00013489,2]
[395224675,1764552649820,-151.0,0.00013489,2]
[395224676,1764552649830,-174.110084,0.00013489,2]
[395224677,1764552649840,-500.0,0.00013489,2]
[395224678,1764552649850,-500.0,0.00013489,2]
[395224679,1764552649860,-151.0,0.00013489,2]
[395224680,1764552649869,-151.0,0.00013489,2]
[395224681,1764552649879,-285.44289036,0.00013489,2]
[395224682,1764552649896,-151.0,0.00013489,2]
[395224683,1764552649906,-253.054847,0.00013489,2]
[395224684,1764552649916,-253.054847,0.00013489,2]
[395224685,1764552649926,-193.535059,0.00013489,2]
[395224686,1764552649936,-162.180226,0.00013489,2]
[395224687,1764552649945,-253.054847,0.00013489,2]
[395224688,1764552649955,-193.535059,0.00013489,2]
[395224689,1764552649965,-253.054843,0.00013489,2]
[395224690,1764552649974,-193.535059,0.00013489,2]
[395224691,1764552649983,-193.535051,0.00013489,2]
[395224692,1764552649992,-500.0,0.00013489,2]
[395224693,1764552650002,-500.0,0.00013489,2]
[395224694,1764552650011,-565.27,0.00013489,2]
[395224695,1764552650020,-151.0,0.00013489,2]
[395224696,1764552650029,-500.0,0.00013489,2]
[395224697,1764552650039,-228.691977,0.00013489,2]
[395224698,1764552650048,-500.0,0.00013489,2]
[395224699,1764552650058,-588.73,0.00013489,2]
[395224700,1764552650067,-500.0,0.00013489,2]
[395224701,1764552650076,-500.0,0.00013489,2]
[395224702,1764552650085,-500.0,0.00013489,2]
[395224703,1764552650095,-500.0,0.00013489,2]
[395224704,1764552650106,-770.04,0.00013489,2]
[395224705,1764552650115,-543.25,0.00013489,2]
[395224706,1764552650124,-500.0,0.00013489,2]
[395224707,1764552650134,-500.0,0.00013489,2]
[395224708,1764552650145,-500.0,0.00013489,2]
[395224709,1764552650154,-500.0,0.00013489,2]
[395224710,1764552650163,-620.95,0.00013489,2]
[395224711,1764552650174,-578.52,0.00013489,2]
[395224712,1764552650185,-500.0,0.00013489,2]
[395224713,1764552650194,-1739.31,0.00013489,2]
[395224714,1764552650204,-500.0,0.00013489,2]
[395224715,1764552650213,-500.0,0.00013489,2]
[395224716,1764552650222,-901.33,0.00013489,2]
[395224717,1764552650231,-529.44,0.00013489,2]
[395224718,1764552650240,-500.0,0.00013489,2]
[395224719,1764552650249,-500.0,0.00013489,2]
[395224720,1764552650259,-500.0,0.00013489,2]
[395224721,1764552650270,-500.0,0.00013489,2]
[395224722,1764552650279,-500.0,0.00013489,2]
[395224723,1764552650288,-500.0,0.00013489,2]
[395224724,1764552650297,-505.45598394,0.00013489,2]
[395224725,1764552650307,-500.0,0.00013489,2]
[395224726,1764552650316,-500.0,0.00013489,2]
[395224727,1764552650325,-896.96,0.00013489,2]
[395224728,1764552650335,-807.15,0.00013489,2]
[395224729,1764552650344,-500.0,0.00013489,2]
[395224730,1764552650353,-643.78,0.00013489,2]
[395224731,1764552650363,-500.0,0.00013489,2]
[395224732,1764552650372,-500.98465621,0.00013489,2]
[395224733,1764552650381,-845.6,0.00013489,2]
[395224734,1764552650390,-1141.01502684,0.00013489,2]
[395224735,1764552650408,-750.42497316,0.00013489,2]
[395224736,1764552650418,-515.78,0.00013489,2]
[395224737,1764552650427,-500.0,0.00013489,2]
[395224738,1764552650438,-2747.31,0.00013489,2]
[395224739,1764552650448,-894.3,0.00013489,2]
[395224740,1764552650457,-500.0,0.00013489,2]
[395224741,1764552650467,-500.0,0.00013489,2]
[395224742,1764552650477,-500.0,0.00013489,2]
[395224743,1764552650487,-500.0,0.00013489,2]
[395224745,1764552650496,-500.0,0.00013489,2]
[395224747,1764552650506,-500.0,0.00013489,2]
[395224748,1764552650516,-500.0,0.00013489,2]
[395224749,1764552650526,-1558.68,0.00013489,2]
[395224750,1764552650536,-500.0,0.00013489,2]
[395224751,1764552650546,-500.0,0.00013489,2]
[395224752,1764552650555,-823.24,0.00013489,2]
[395224753,1764552650565,-500.0,0.00013489,2]
[395224754,1764552650575,-500.0,0.00013489,2]
[395224755,1764552650584,-500.0,0.00013489,2]
[395224756,1764552650594,-500.0,0.00013489,2]
[395224757,1764552650604,-1445.47,0.00013489,2]
[395224758,1764552650614,-500.0,0.00013489,2]
[395224759,1764552650624,-500.0,0.00013489,2]
[395224760,1764552650633,-508.23707369,0.00013489,2]
[395224761,1764552650643,-500.0,0.00013489,2]
[395224762,1764552650654,-500.0,0.00013489,2]
[395224763,1764552650664,-2660.65,0.00013489,2]
[395224764,1764552650674,-500.0,0.00013489,2]
[395224765,1764552650684,-151.0,0.000135,2]
[395224766,1764552650695,-151.0,0.000135,2]
[395224767,1764552650705,-151.0,0.000135,2]
[395224768,1764552650714,-151.0,0.000135,2]
[395224769,1764552650724,-151.0,0.000135,2]
[395224770,1764552650734,-151.0,0.000135,2]
[395224771,1764552650744,-151.0,0.000135,2]
[395224772,1764552650753,-10282.99496499,0.00013526,2]
[395224774,1764552650763,-500.0,0.0001354,2]
[395224776,1764552650774,-795.72,0.0001354,2]
[395224777,1764552650786,-500.0,0.0001354,2]
[395224778,1764552650796,-1573.76,0.0001354,2]
[395224779,1764552650805,-1037.9,0.0001354,2]
[395224780,1764552650815,-4537.48,0.0001354,2]
[395224781,1764552650824,-736.5,0.0001354,2]
[395224782,1764552650834,-500.0,0.0001354,2]
[395224783,1764552650845,-500.0,0.0001354,2]
[395224784,1764552650854,-1111.26,0.0001354,2]
[395224785,1764552650865,-9618.89,0.0001354,2]
[395224786,1764552650875,-1832.59,0.0001354,2]
[395224787,1764552650884,-7872.83,0.0001354,2]
[395224788,1764552650894,-500.0,0.0001354,2]
[395224789,1764552650903,-500.0,0.0001354,2]
[395224790,1764552650913,-840.09,0.0001354,2]
[395224791,1764552650923,-3459.07,0.0001354,2]
[395224792,1764552650932,-500.0,0.0001354,2]
[395224793,1764552650943,-1451.11,0.0001354,2]
[395224794,1764552650952,-605.52,0.0001354,2]
[395224796,1764552650961,-500.0,0.0001354,2]
[395224798,1764552650972,-752.48,0.0001354,2]
[395224800,1764552650981,-500.0,0.0001354,2]
[395224801,1764552650991,-500.0,0.0001354,2]
[395224802,1764552651000,-500.0,0.0001354,2]
[395224803,1764552651009,-500.0,0.0001354,2]
[395224805,1764552651019,-3608.1,0.0001354,2]
[395224807,1764552651028,-500.0,0.0001354,2]
[395224808,1764552651037,-500.0,0.0001354,2]
[395224809,1764552651047,-500.0,0.0001354,2]
[395224810,1764552651057,-876.87,0.0001354,2]
[395224811,1764552651066,-769.65,0.0001354,2]
[395224813,1764552651076,-505.45605868,0.0001354,2]
[395224814,1764552651086,-500.0,0.0001354,2]
[395224815,1764552651098,-510.71,0.0001354,2]
[395224816,1764552651107,-500.0,0.0001354,2]
[395224817,1764552651118,-2267.64,0.0001354,2]
[395224819,1764552651129,-500.0,0.00013541,2]
[395224820,1764552651138,-4281.95,0.00013541,2]
[395224821,1764552651148,-500.0,0.00013541,2]
[395224822,1764552651157,-500.0,0.00013541,2]
[395224823,1764552651167,-500.0,0.00013541,2]
[395224824,1764552651178,-500.0,0.00013541,2]
[395224825,1764552651188,-1012.23,0.00013541,2]
[395224826,1764552651197,-1233.34,0.00013541,2]
[395224827,1764552651207,-986.61,0.00013541,2]
[395224828,1764552651216,-1663.72,0.00013541,2]
[395224829,1764552651225,-3771.91,0.00013541,2]
[395224830,1764552651235,-1955.92,0.00013541,2]
[395224831,1764552651245,-848.81,0.00013541,2]
[395224832,1764552651254,-3134.92,0.00013541,2]
[395224833,1764552651263,-2565.02,0.00013541,2]
[395224834,1764552651272,-500.0,0.00013541,2]
[395224835,1764552651281,-500.0,0.00013541,2]
[395224836,1764552651290,-1084.85,0.00013541,2]
[395224838,1764552651299,-2933.03,0.00013541,2]
[395224839,1764552651308,-2720.38,0.00013541,2]
[395224840,1764552651317,-2687.65,0.00013541,2]
[395224841,1764552651326,-3196.75,0.00013541,2]
[395224842,1764552651337,-760.79,0.00013541,2]
[395224844,1764552651348,-209.29514456,0.00013541,2]
[395224845,1764552651358,-762.39,0.00013541,2]
[395224846,1764552651368,-1652.85,0.00013541,2]
[395224847,1764552651378,-847.94,0.00013541,2]
[395224848,1764552651387,-4966.58,0.00013541,2]
[395224849,1764552651396,-7231.51,0.00013541,2]
[395224850,1764552651406,-1574.06,0.00013541,2]
[395224851,1764552651415,-665.45,0.00013541,2]
[395224852,1764552651425,-1053.46,0.00013541,2]
[395224853,1764552651436,-1585.23,0.00013541,2]
[395224854,1764552651445,-500.0,0.00013542,2]
[395224855,1764552651455,-500.0,0.00013542,2]
[395224856,1764552651465,-151.0,0.00013542,2]
[395224857,1764552651475,-47705.73543679,0.00013542,2]
[395224858,1764552652423,-604.0,0.00013266,2]
[395224859,1764552652437,-620.55,0.00013266,2]
[395224860,1764552652446,-151.82859989,0.00013267,2]
[395224861,1764552652456,-501.33733297,0.00013269,2]
[395224862,1764552652466,-1224.55,0.0001354,2]
[395224863,1764552652475,-2294.26456321,0.00013542,2]
[395224864,1764552652484,-500.0,0.00013542,2]
[395224865,1764552652494,-500.0,0.00013542,2]
[395224866,1764552652503,-500.0,0.00013542,2]
[395224867,1764552652512,-506.68,0.00013542,2]
[395224868,1764552652522,-500.0,0.00013542,2]
[395224869,1764552652532,-500.0,0.00013542,2]
[395224870,1764552652547,-500.0,0.00013542,2]
[395224871,1764552652556,-500.0,0.00013542,2]
[395224872,1764552652565,-500.0,0.00013542,2]
[395224873,1764552652574,-500.0,0.00013542,2]
[395224874,1764552652583,-685.25,0.00013542,2]
[395224875,1764552652593,-500.0,0.00013542,2]
[395224876,1764552652602,-2120.64,0.00013542,2]
[395224877,1764552652612,-500.0,0.00013542,2]
[395224878,1764552652622,-662.73,0.00013542,2]
[395224879,1764552652631,-1078.34,0.00013542,2]
[395224880,1764552652641,-1402.63,0.00013542,2]
[395224881,1764552652650,-956.92,0.00013542,2]
[395224882,1764552652659,-500.0,0.00013542,2]
[395224883,1764552652668,-500.0,0.00013542,2]
[395224884,1764552652678,-500.0,0.00013542,2]
[395224885,1764552652688,-500.0,0.00013542,2]
[395224886,1764552652697,-500.0,0.00013542,2]
[395224887,1764552652707,-596.73,0.00013542,2]
[395224888,1764552652716,-500.0,0.00013542,2]
[395224889,1764552652728,-500.0,0.00013542,2]
[395224890,1764552652737,-744.73,0.00013542,2]
[395224891,1764552652747,-500.0,0.00013542,2]
[395224892,1764552652756,-603.41,0.00013542,2]
[395224893,1764552652766,-500.0,0.00013542,2]
[395224894,1764552652775,-500.0,0.00013542,2]
[395224895,1764552652784,-500.0,0.00013542,2]
[395224896,1764552652794,-500.0,0.00013542,2]
[395224897,1764552652803,-722.06,0.00013542,2]
[395224898,1764552652812,-500.0,0.00013542,2]
[395224899,1764552652822,-71.57299412,0.00013542,2]
[395224900,1764552654206,-502.00209852,0.00013269,2]
[395224901,1764552654217,-501.75163438,0.00013269,2]
[395224902,1764552654227,-428.42700588,0.00013542,2]
[395224903,1764552654236,-482.24434958,0.00013542,2]
[395224904,1764552654246,-804.05,0.00013542,2]
[395224905,1764552654258,-478.99,0.00013542,2]
[395224906,1764552654268,-710.79,0.00013542,2]
[395224907,1764552654278,-1423.44,0.00013542,2]
[395224908,1764552654287,-500.0,0.00013542,2]
[395224909,1764552654298,-500.0,0.00013542,2]
[395224910,1764552654307,-500.0,0.00013542,2]
[395224911,1764552654317,-785.51,0.00013542,2]
[395224912,1764552654329,-500.0,0.00013542,2]
[395224913,1764552654339,-500.0,0.00013542,2]
[395224914,1764552654348,-500.0,0.00013542,2]
[395224915,1764552654358,-500.0,0.00013542,2]
[395224916,1764552654368,-500.0,0.00013542,2]
[395224917,1764552654377,-500.0,0.00013542,2]
[395224918,1764552654387,-500.0,0.00013542,2]
[395224919,1764552654396,-1091.51,0.00013542,2]
[395224920,1764552654406,-599.64,0.00013542,2]
[395224921,1764552654415,-500.0,0.00013542,2]
[395224922,1764552654424,-1869.01,0.00013542,2]
[395224923,1764552654434,-500.0,0.00013542,2]
[395224924,1764552654444,-995.18,0.00013542,2]
[395224925,1764552654454,-500.0,0.00013542,2]
[395224926,1764552654463,-1556.6,0.00013542,2]
[395224927,1764552654473,-500.0,0.00013542,2]
[395224928,1764552654483,-1453.5,0.00013542,2]
[395224929,1764552654492,-500.0,0.00013542,2]
[395224930,1764552654502,-500.0,0.00013542,2]
[395224931,1764552654511,-500.0,0.00013542,2]
[395224932,1764552654520,-500.0,0.00013542,2]
[395224933,1764552654530,-500.72332999,0.00013542,2]
[395224934,1764552654539,-612.27,0.00013542,2]
[395224935,1764552654548,-593.69,0.00013542,2]
[395224936,1764552654557,-219.46456338,0.00013542,2]
[395224937,1764552654567,-5413.8,0.00013542,2]
[395224938,1764552654576,-228.7477543,0.00013542,2]
[395224939,1764552654588,-271.2522457,0.00013542,2]
[395224940,1764552654597,-500.0,0.00013542,2]
[395224941,1764552654606,-1389.74,0.00013542,2]
[395224942,1764552654617,-1460.61,0.00013542,2]
[395224943,1764552654626,-500.0,0.00013542,2]
[395224944,1764552654636,-500.0,0.00013542,2]
[395224945,1764552654646,-796.5,0.00013542,2]
[395224946,1764552654655,-1362.46,0.00013542,2]
[395224947,1764552654665,-500.0,0.00013542,2]
[395224948,1764552654675,-509.63,0.00013542,2]
[395224949,1764552654684,-2756.41,0.00013542,2]
[395224950,1764552654696,-3367.83,0.00013542,2]
[395224951,1764552654706,-500.0,0.00013542,2]
[395224952,1764552654716,-173.06383424,0.00013542,2]
[395224953,1764552654725,-500.0,0.00013542,2]
[395224954,1764552654735,-500.0,0.00013542,2]
[395224955,1764552654744,-500.0,0.00013542,2]
[395224956,1764552654754,-561.94,0.00013542,2]
[395224957,1764552654763,-685.65,0.00013542,2]
[395224958,1764552654773,-500.0,0.00013542,2]
[395224959,1764552654782,-500.0,0.00013542,2]
[395224960,1764552654792,-1869.66,0.00013542,2]
[395224961,1764552654801,-500.0,0.00013542,2]
[395224962,1764552654811,-925.73,0.00013542,2]
[395224963,1764552654820,-506.54,0.00013542,2]
[395224964,1764552654829,-1314.85291802,0.00013542,2]
[395224965,1764552654841,-3960.98708198,0.00013542,2]
[395224966,1764552654850,-500.0,0.00013542,2]
[395224967,1764552654859,-500.0,0.00013542,2]
[395224968,1764552654868,-1559.65,0.00013542,2]
[395224969,1764552654878,-500.0,0.00013542,2]
[395224970,1764552654887,-500.0,0.00013542,2]
[395224971,1764552654896,-710.05145074,0.00013542,2]
[395224972,1764552654907,-600.99999999,0.00013542,2]
[395225004,1764553832551,-552.0,0.0001235,2]
[395225006,1764553832561,-252.0,0.00012475,2]
[395225008,1764553832572,-163.56943297,0.00012634,2]
[395225010,1764553832581,-182.64971786,0.00012855,2]
[395225011,1764553832592,-50000.0,0.00012856,2]
[395225012,1764553832602,-197.1891641,0.00012856,2]
[395225014,1764553832612,-751.37,0.00012856,2]
[395225015,1764553832622,-500.0,0.00012856,2]
[395225016,1764553832632,-1451.92,0.00012856,2]
[395225018,1764553832642,-985.26,0.00012856,2]
[395225020,1764553832652,-4264.52,0.00012856,2]
[395225022,1764553832663,-696.32,0.00012856,2]
[395225024,1764553832673,-500.0,0.00012856,2]
[395225025,1764553832685,-500.0,0.00012856,2]
[395225026,1764553832697,-870.81,0.00012856,2]
[395225027,1764553832708,-9006.36,0.00012856,2]
[395225028,1764553832724,-1746.54,0.00012856,2]
[395225029,1764553832736,-7415.21,0.00012856,2]
[395225030,1764553832747,-500.0,0.00012856,2]
[395225031,1764553832758,-500.0,0.00012856,2]
[395225032,1764553832770,-500.0,0.00012856,2]
[395225033,1764553832781,-3296.55,0.00012856,2]
[395225034,1764553832792,-991.47,0.00012856,2]
[395225035,1764553832804,-500.0,0.00012856,2]
[395225036,1764553832816,-1331.24,0.00012856,2]
[395225037,1764553832826,-690.1,0.00012856,2]
[395225038,1764553832836,-2058.47,0.00012856,2]
[395225039,1764553832846,-500.0,0.00012856,2]
[395225040,1764553832857,-2675.63,0.00012856,2]
[395225041,1764553832868,-500.0,0.00012856,2]
[395225042,1764553832879,-505.71751705,0.00012857,2]
[395225043,1764553832888,-500.0,0.00012857,2]
[395225044,1764553832898,-500.0,0.00012857,2]
[395225045,1764553832908,-500.0,0.00012857,2]
[395225046,1764553832918,-284.85773275,0.00012857,2]
[395225047,1764553833276,-500.0,0.00012857,2]
[395225048,1764553833295,-500.0,0.00012857,2]
[395225049,1764553833304,-500.0,0.00012857,2]
[395225050,1764553833314,-245.90733944,0.00012857,2]
[395225051,1764553833323,-500.0,0.00012857,2]
[395225052,1764553833332,-500.0,0.00012857,2]
[395225053,1764553833342,-726.35,0.00012857,2]
[395225054,1764553833351,-500.0,0.00012857,2]
[395225055,1764553833360,-504.08597847,0.00012857,2]
[395225056,1764553833369,-501.90412335,0.00012857,2]
[395225057,1764553833378,-500.0,0.00012857,2]
[395225058,1764553833388,-505.10109194,0.00012857,2]
[395225059,1764553833397,-501.40349532,0.00012857,2]
[395225060,1764553833405,-1146.71,0.00012857,2]
[395225061,1764553833414,-504.4458807,0.00012857,2]
[395225062,1764553833426,-500.0,0.00012857,2]
[395225063,1764553833435,-503.45113283,0.00012857,2]
[395225064,1764553833444,-2519.57485853,0.00012857,2]
[395225065,1764553833456,-532.93169177,0.00012857,2]
[395225066,1764553833469,-702.37984139,0.00012857,2]
[395225086,1764553838763,-1099.4319014,0.00012728,2]
[395225088,1764553838775,-562.23796109,0.00012728,2]
[395225090,1764553838784,-241.62295559,0.00012855,2]
[395225092,1764553838796,-258.37704441,0.00012855,2]
[395225094,1764553838805,-431.61526644,0.00012855,2]
[395225098,1764553838845,-68.38473356,0.00012855,2]
[395225099,1764553838854,-157.43446198,0.00012855,2]
[395225100,1764553838864,-261.52360831,0.00012857,2]
[395225101,1764553838874,-501.30840617,0.00012857,2]
[395225102,1764553838883,-501.29307036,0.00012857,2]
[395225103,1764553838893,-500.0,0.00012857,2]
[395225104,1764553838902,-949.22,0.00012857,2]
[395225105,1764553838911,-501.66828858,0.00012857,2]
[395225106,1764553838930,-500.0,0.00012857,2]
[395225107,1764553838941,-500.0,0.00012857,2]
[395225108,1764553838950,-504.65848116,0.00012857,2]
[395225109,1764553838960,-500.0,0.00012857,2]
[395225110,1764553838970,-928.98,0.00012857,2]
[395225111,1764553838980,-500.0,0.00012857,2]
[395225112,1764553838989,-500.0,0.00012857,2]
[395225113,1764553838999,-504.02626029,0.00012857,2]
[395225114,1764553839009,-862.06304602,0.00012857,2]
[395225266,1764553840759,-500.0,0.00012856,2]
[395225268,1764553840769,-2596.34695398,0.00012857,2]
[395225270,1764553840778,-500.0,0.00012857,2]
[395225272,1764553840788,-500.0,0.00012857,2]
[395225274,1764553840798,-502.14013341,0.00012857,2]
[395225276,1764553840808,-504.19401893,0.00012857,2]
[395225278,1764553840817,-1157.46,0.00012857,2]
[395225280,1764553840827,-1838.11,0.00012857,2]
[395225282,1764553840836,-500.0,0.00012857,2]
[395225284,1764553840845,-603.87,0.00012857,2]
[395225286,1764553840858,-3005.63,0.00012857,2]
[395225288,1764553840868,-398.85392998,0.00012857,2]
[395225290,1764553840878,-1574.62,0.00012857,2]
[395225292,1764553840888,-500.0,0.00012857,2]
[395225294,1764553840898,-500.0,0.00012857,2]
[395225296,1764553840907,-2408.88,0.00012857,2]
[395225298,1764553840918,-500.0,0.00012857,2]
[395225300,1764553840928,-500.0,0.00012857,2]
[395225302,1764553840938,-506.10763134,0.00012857,2]
[395225304,1764553840948,-1020.13,0.00012857,2]
[395225306,1764553840958,-502.65379797,0.00012857,2]
[395225308,1764553840968,-799.64,0.00012857,2]
[395225336,1764553841238,-500.0,0.00012857,2]
[395225338,1764553841251,-500.0,0.00012857,2]
[395225340,1764553841260,-2742.74,0.00012857,2]
[395225342,1764553841270,-907.75554123,0.00012857,2]
[395225344,1764553841282,-1643.91445877,0.00012857,2]
[395225346,1764553841291,-500.0,0.00012857,2]
[395225348,1764553841300,-500.0,0.00012857,2]
[395225350,1764553841309,-2572.65,0.00012857,2]
[395225352,1764553841319,-685.43,0.00012857,2]
[395225354,1764553841328,-500.0,0.00012857,2]
[395225356,1764553841337,-500.0,0.00012857,2]
[395225358,1764553841347,-500.0,0.00012857,2]
[395225360,1764553841356,-500.0,0.00012857,2]
[395225362,1764553841365,-500.0,0.00012857,2]
[395225364,1764553841375,-500.0,0.00012857,2]
[395225366,1764553841384,-254.63883423,0.00012857,2]
[395225601,1764553843802,-500.0,0.00012856,2]
[395225603,1764553843813,-2748.58116577,0.00012857,2]
[395225605,1764553843822,-274.78414413,0.00012857,2]
[395225607,1764553843831,-1377.55,0.00012857,2]
[395225609,1764553843840,-500.0,0.00012857,2]
[395225611,1764553843850,-750.31,0.00012857,2]
[395225614,1764553843862,-699.5,0.00012857,2]
[395225616,1764553843872,-500.0,0.00012857,2]
[395225618,1764553843882,-500.0,0.00012857,2]
[395225620,1764553843892,-502.27394519,0.00012857,2]
[395225622,1764553843903,-720.23,0.00012857,2]
[395225624,1764553843912,-1516.17,0.00012857,2]
[395225626,1764553843922,-500.0,0.00012857,2]
[395225628,1764553843931,-500.0,0.00012857,2]
[395225630,1764553843940,-285.27847951,0.00012857,2]
[395225634,1764553843971,-214.72152049,0.00012857,2]
[395225636,1764553843981,-59.92208515,0.00012857,2]
[395225638,1764553843994,-442.43401538,0.00012857,2]
[395225640,1764553844011,-4643.03,0.00012857,2]
[395225642,1764553844020,-799.13,0.00012857,2]
[395225644,1764553844030,-500.0,0.00012857,2]
[395225646,1764553844039,-500.0,0.00012857,2]
[395225648,1764553844048,-1463.72,0.00012857,2]
[395225650,1764553844058,-730.09,0.00012857,2]
[395225652,1764553844067,-6628.88,0.00012857,2]
[395225654,1764553844076,-7786.00203602,0.00012858,2]
[395225657,1764553844088,-5436.77081041,0.00012858,2]
[395225659,1764553844100,-1036.06313509,0.00012858,2]
[395225933,1764553846794,-500.0,0.00012855,2]
[395225935,1764553846805,-279.9514622,0.00012856,2]
[395225937,1764553846816,-220.0485378,0.00012856,2]
[395225939,1764553846825,-500.0,0.00012856,2]
[395225941,1764553846834,-502.93580045,0.00012857,2]
[395225943,1764553846843,-977.61,0.00012857,2]
[395225945,1764553846853,-502.45951424,0.00012857,2]
[395225947,1764553846862,-15799.62954548,0.00012858,2]
[395225949,1764553846871,-1573.86300164,0.000129,2]
[395225951,1764553846881,-353.67603643,0.00012918,2]
[395225954,1764553846899,-500.0,0.00013129,2]
[395225957,1764553846911,-751.37,0.0001313,2]
[395225959,1764553846921,-500.0,0.0001313,2]
[395225961,1764553846930,-1451.92,0.0001313,2]
[395225963,1764553846940,-985.26,0.0001313,2]
[395225965,1764553846950,-4264.52,0.0001313,2]
[395225967,1764553846960,-696.32,0.0001313,2]
[395225969,1764553846970,-500.0,0.0001313,2]
[395225971,1764553846980,-500.0,0.0001313,2]
[395225973,1764553846991,-870.81,0.0001313,2]
[395225975,1764553847002,-2939.6782513,0.0001313,2]
[395227120,1764554399586,483.3,0.0002,30]
[395227121,1764554447230,157.0,0.0002,30]
[395227123,1764554806923,150.0,0.00016861,30]
[395227124,1764554807419,150.0,0.00017663,30]
[395227125,1764554807737,180.43,0.00018466,30]
[395227126,1764554808151,240.57,0.00019269,30]
[395227127,1764554884661,150.0,0.00018542,30]
[395227128,1764554885064,150.0,0.00019425,30]
[395227140,1764554964013,150.0,0.00019273,30]
[395227150,1764555031781,-300.0,0.00012361,2]
[395227151,1764555031790,-64.37300864,0.00012361,2]
[395227152,1764555031834,-385.02939656,0.00012361,2]
[395227153,1764555031846,-303.41490542,0.00012361,2]
[395227196,1764555038003,-447.18268938,0.00012361,2]
[395227198,1764555038012,-251.0,0.00012362,2]
[395227200,1764555038021,-227.35610179,0.00012362,2]
[395227202,1764555038032,-259.8355449,0.00012362,2]
[395227204,1764555038041,-405.58704587,0.00012362,2]
[395227206,1764555038051,-274.25375925,0.00012362,2]
[395227208,1764555038060,-313.43286771,0.00012362,2]
[395227210,1764555038070,-489.24911694,0.00012362,2]
[395227212,1764555038080,-162.679903,0.00012369,2]
[395227214,1764555038089,-548.49392164,0.00012375,2]
[395227216,1764555038098,-353.67603643,0.00012585,2]
[395227218,1764555038107,-3032.39771741,0.00012623,2]
[395227220,1764555038116,-635.93100153,0.00012749,2]
[395227222,1764555038125,-521.44921861,0.00012749,2]